bitfinex-derivatives/quotes_SOLF0:USTF0_20220104
["timestamp","ask_amount","ask_price","bid_price","bid_amount"]
[1641279894116,40.3794,168.0,167.98,0.67198294]
[1641279894718,40.3794,168.0,167.93,0.67198294]
[1641279894917,40.3794,168.0,167.99,0.67198294]
[1641279895317,40.3794,168.0,167.93,0.67198294]
[1641279895620,27.66479,167.98,167.93,0.67198294]
[1641279896218,1.74690992,167.99,167.92,0.67198294]
[1641279896621,68.04419,168.0,167.93,2.71412592]
[1641279897022,40.3794,168.0,167.93,2.71412592]
[1641279897220,40.3794,168.0,167.94,0.67198294]
[1641279898225,27.66479,168.02,167.95,2.71412592]
[1641279898421,27.66479,168.02,167.95,9.08512592]
[1641279899022,27.66479,168.02,167.96,3.38610886]
[1641279899524,27.66479,168.02,167.97,0.67198294]
[1641279900123,27.66479,168.02,167.97,3.38610886]
[1641279900728,27.66479,168.02,167.98,0.67198294]
[1641279901026,1.74831882,168.01,167.98,3.38610886]
[1641279901624,1.74831882,168.01,167.99,0.67198294]
[1641279903029,1.74831882,168.01,167.95,0.67198294]
[1641279903631,1.74831882,168.01,167.96,2.45089386]
[1641279904030,1.74831882,168.01,167.96,8.00789386]
[1641279904231,1.74831882,168.01,167.97,0.67198294]
[1641279905834,1.74831882,168.03,167.98,2.45089386]
[1641279906233,1.74831882,168.03,167.99,0.67198294]
[1641279907138,1.74831882,168.03,168.0,2.45089386]
[1641279907333,1.74831882,168.03,168.0,6.61189386]
[1641279907532,1.74831882,168.03,168.01,0.67198294]
[1641279909138,1.74831882,168.03,167.98,0.67198294]
[1641279909839,1.74831882,168.03,167.99,2.45103554]
[1641279910238,1.74831882,168.03,168.0,0.67198294]
[1641279910639,1.74831882,168.03,168.01,6.0]
[1641279911042,1.74831882,168.03,168.02,0.67198294]
[1641279912044,1.74831882,168.04,168.02,0.67198294]
[1641279913445,9.20766698,168.04,168.02,0.67198294]
[1641279914547,1.74831882,168.04,168.02,0.67198294]
[1641279920153,1.74831882,168.04,168.02,5.49098294]
[1641279920554,1.74831882,168.04,168.03,0.67198294]
[1641279920753,9.20767653,168.04,168.03,0.67198294]
[1641279921357,9.20767653,168.04,168.02,0.67198294]
[1641279923057,9.20767653,168.05,168.02,0.67198294]
[1641279923259,27.66479,168.04,168.02,0.67198294]
[1641279923860,14.34426899,168.03,168.02,0.67198294]
[1641279942389,40.26074017,168.03,168.02,0.67198294]
[1641279943491,42.00905899,168.03,168.02,0.67198294]
[1641279943688,14.34426899,168.03,168.02,0.67198294]
[1641279943892,1.74831882,168.03,168.02,0.67198294]
[1641279944489,27.66479,168.03,168.02,0.67198294]
[1641279945588,42.00905899,168.03,168.02,0.67198294]
[1641279945790,42.00905899,168.03,168.01,6.0]
[1641279946491,1.74831882,168.02,168.01,6.0]
[1641279946792,1.74831882,168.02,167.96,38.7244]
[1641279946992,9.20974839,168.02,168.01,0.67188572]
[1641279947191,9.20974839,168.02,167.97,4.19916957]
[1641279947991,15.59769254,168.01,167.97,6.61233263]
[1641279948492,27.66479,168.0,167.97,2.41316306]
[1641279948791,42.01080136,168.0,167.93,24.24371497]
[1641279949192,42.01080136,168.0,167.93,15.00911323]
[1641279949392,14.34601136,167.99,167.93,2.41316306]
[1641279950595,1.74831882,167.99,167.93,2.41316306]
[1641279953701,1.74831882,167.99,167.92,41.048]
[1641279953702,27.66479,168.0,167.92,41.048]
[1641279953902,27.66479,168.0,167.92,45.476]
[1641279954405,27.66479,168.0,167.92,48.476]
[1641279954603,1.78081685,167.99,167.93,2.40540495]
[1641279955304,27.66479,168.0,167.93,2.40540495]
[1641279956003,1.78074696,167.99,167.93,2.40540495]
[1641279957305,27.66479,168.0,167.93,2.40540495]
[1641279957906,1.78072417,167.99,167.93,2.40540495]
[1641279959008,27.66479,168.0,167.93,2.40540495]
[1641279959207,64.45449254,168.02,167.93,2.40540495]
[1641279959609,27.66479,168.0,167.93,2.40540495]
[1641279960309,1.78071157,167.99,167.93,2.40540495]
[1641279961013,27.66479,168.0,167.93,2.40540495]
[1641279961613,1.78073516,167.99,167.93,2.40540495]
[1641279962413,1.78073516,167.99,167.94,0.67195554]
[1641279962813,27.66479,168.0,167.94,0.67195554]
[1641279963015,30.66479,168.0,167.94,0.67195554]
[1641279963216,3.3600265,167.99,167.94,0.67195554]
[1641279963415,12.59769254,167.97,167.94,0.67195554]
[1641279964018,12.59769254,167.97,167.91,0.67195554]
[1641279965018,1.78704142,167.97,167.92,2.41297527]
[1641279965520,1.78704142,167.97,167.93,0.67195554]
[1641279965720,40.2617,167.98,167.93,0.67195554]
[1641279965919,12.60043474,167.97,167.93,0.67195554]
[1641279966623,30.66479,168.0,167.93,0.67195554]
[1641279966821,12.60009888,167.98,167.94,2.41297527]
[1641279967223,12.60009888,167.98,167.95,0.67195554]
[1641279967423,12.60009888,167.97,167.95,0.67195554]
[1641279968124,12.60000816,167.98,167.91,0.67195554]
[1641279968723,12.60000816,167.98,167.92,2.4130081]
[1641279969125,12.60000816,167.98,167.92,8.5660081]
[1641279969525,12.60000816,167.98,167.93,0.67195554]
[1641279970328,12.60000816,167.98,167.94,2.4130081]
[1641279970725,12.60000816,167.98,167.95,0.67195554]
[1641279971729,12.60000816,167.97,167.95,0.67195554]
[1641279972026,12.60000816,167.97,167.91,0.67195554]
[1641279972627,9.35246648,167.99,167.91,0.67195554]
[1641279972827,12.59974263,167.98,167.91,29.25158556]
[1641279973427,9.35246648,167.99,167.92,3.08480054]
[1641279973828,9.35246648,167.99,167.93,0.67195554]
[1641279974129,12.60246996,167.98,167.93,3.08480054]
[1641279974829,12.60246996,167.98,167.94,0.67195554]
[1641279975128,14.38950028,167.98,167.94,3.08480054]
[1641279975527,14.38950028,167.98,167.95,0.67195554]
[1641279975930,9.35325202,167.99,167.95,0.67195554]
[1641279976329,9.35325202,167.99,167.92,0.67195554]
[1641279977030,12.6024491,167.98,167.92,0.67195554]
[1641279977829,12.6024491,167.98,167.93,2.41285098]
[1641279978430,12.6024491,167.98,167.94,0.67195554]
[1641279979830,14.39026496,167.99,167.95,2.41285098]
[1641279980030,27.66479,167.96,167.95,2.41285098]
[1641279980631,27.66479,167.96,167.91,12.59595017]
[1641279980832,29.45272434,167.96,167.9,24.8307463]
[1641279981432,1.78807213,167.95,167.91,2.41282901]
[1641279983334,27.66479,167.96,167.9,5.41282901]
[1641279983934,1.78808452,167.95,167.91,2.41282901]
[1641279984533,27.66479,167.96,167.91,2.41282901]
[1641279985336,1.78807739,167.95,167.91,2.41282901]
[1641279985939,27.66479,167.96,167.91,2.41282901]
[1641279986638,1.7880696,167.95,167.91,2.41282901]
[1641279987340,66.55279,168.0,167.91,8.41282901]
[1641279987739,3.36073262,167.99,167.91,8.41282901]
[1641279988139,12.60282573,167.97,167.92,2.41282901]
[1641279990044,9.35707183,167.99,167.92,2.41282901]
[1641279990446,12.60280509,167.97,167.92,2.41282901]
[1641279992749,12.60280509,167.97,167.92,5.41282901]
[1641279992949,9.35707183,167.99,167.92,2.41282901]
[1641279993749,3.3608513,167.98,167.92,2.41282901]
[1641279993951,12.60281242,167.97,167.92,2.41282901]
[1641279994853,14.39093348,167.97,167.92,2.41282901]
[1641279995252,12.60281242,167.97,167.92,2.41282901]
[1641279995454,12.60281242,167.97,167.93,0.67217481]
[1641279996756,12.60281242,167.97,167.92,0.67217481]
[1641279997653,12.60281242,167.97,167.91,11.766]
[1641279997854,12.60281242,167.97,167.93,3.08499133]
[1641279998455,12.60281242,167.97,167.94,0.67217336]
[1641279998859,12.60281242,167.97,167.92,0.67217336]
[1641279999757,12.60281242,167.97,167.93,2.41281269]
[1641280000256,12.60281242,167.97,167.94,0.67217336]
[1641280001959,12.60281242,167.97,167.92,0.67217336]
[1641280002860,14.39093348,167.97,167.92,0.67217336]
[1641280003262,6.36128991,167.96,167.92,0.67217336]
[1641280003561,6.36128991,167.96,167.91,6.0]
[1641280003764,3.0,167.95,167.91,6.0]
[1641280003961,15.60281242,167.95,167.91,6.0]
[1641280004163,3.0,167.94,167.86,12.59595017]
[1641280004362,3.0,167.93,167.86,12.59595017]
[1641280004563,27.66479,167.91,167.86,12.59595017]
[1641280004965,27.66479,167.91,167.85,12.59595017]
[1641280005966,1.78869946,167.9,167.85,12.59595017]
[1641280006567,27.66479,167.91,167.85,12.59595017]
[1641280007268,1.78868104,167.9,167.89,4.20039776]
[1641280007468,8.56868104,167.9,167.89,4.20039776]
[1641280008169,6.78,167.9,167.89,4.20039776]
[1641280008873,8.56881266,167.9,167.88,4.20039776]
[1641280009570,6.78,167.9,167.88,4.20039776]
[1641280010273,0.05666384,167.9,167.88,4.20039776]
[1641280010471,15.60281242,167.93,167.88,4.20039776]
[1641280010773,12.60281242,167.93,167.88,4.20039776]
[1641280011070,12.60281242,167.93,167.89,4.20039776]
[1641280011672,12.60281242,167.91,167.87,4.20039776]
[1641280013575,12.60281242,167.92,167.88,4.20039776]
[1641280014474,12.60281242,167.91,167.87,4.20039776]
[1641280015074,12.60281242,167.92,167.88,4.20039776]
[1641280016378,12.60281242,167.91,167.87,4.20039776]
[1641280017380,12.60281242,167.92,167.88,4.20039776]
[1641280017980,12.60281242,167.91,167.87,4.20039776]
[1641280018780,12.60281242,167.91,167.87,7.20039776]
[1641280018981,1.85007864,167.93,167.85,6.61210589]
[1641280019984,1.85007864,167.93,167.85,4.20039776]
[1641280020185,1.85007864,167.93,167.84,4.20039776]
[1641280020384,41.4239,167.92,167.84,4.20039776]
[1641280020585,41.4239,167.92,167.86,27.66479]
[1641280021591,41.4239,167.92,167.85,7.20039776]
[1641280021592,41.4239,167.92,167.85,4.20039776]
[1641280021788,12.60281242,167.96,167.87,3.0]
[1641280021991,40.9518,167.95,167.87,4.483]
[1641280022188,40.9518,167.95,167.87,7.483]
[1641280022489,40.9518,167.95,167.88,3.0]
[1641280022689,68.61659,167.95,167.88,3.0]
[1641280022890,27.66479,167.95,167.88,9.5398949]
[1641280023089,12.60281242,167.99,167.89,3.0]
[1641280023489,12.60281242,167.99,167.9,4.20039776]
[1641280023792,57.45101242,168.01,167.9,4.20039776]
[1641280023989,54.45101242,168.01,167.91,41.2928]
[1641280024189,3.3606826,168.0,167.91,41.2928]
[1641280024390,5.19903015,168.0,167.91,41.2928]
[1641280024794,32.86382015,168.0,167.92,27.66479]
[1641280025094,3.3606826,167.99,167.92,27.66479]
[1641280025495,1.83834755,167.99,167.92,27.66479]
[1641280028899,1.83834755,167.99,167.91,47.2928]
[1641280029401,1.83834755,167.99,167.91,51.49319776]
[1641280029902,7.99034755,167.99,167.91,51.49319776]
[1641280030601,7.99034755,167.99,167.91,47.2928]
[1641280031101,33.81679,167.99,167.91,74.95759]
[1641280032303,6.152,167.99,167.91,47.2928]
[1641280033106,1.83681337,167.98,167.91,47.2928]
[1641280033604,1.83681337,167.98,167.91,74.95759]
[1641280034305,1.83681337,167.98,167.91,47.2928]
[1641280035406,54.45101242,168.01,167.92,27.66479]
[1641280035407,1.83681337,167.99,167.92,27.66479]
[1641280035606,5.095,167.98,167.92,27.66479]
[1641280035806,5.095,167.98,167.91,6.0]
[1641280036008,1.83681337,167.97,167.91,6.0]
[1641280037307,5.095,167.98,167.91,6.0]
[1641280039609,27.66479,167.97,167.91,6.0]
[1641280047312,12.60281242,168.0,167.91,6.0]
[1641280047511,15.60281242,168.0,167.91,6.0]
[1641280047712,3.36061765,167.99,167.91,6.0]
[1641280047913,27.66479,167.98,167.91,6.0]
[1641280048112,27.66479,167.98,167.92,6.5528401]
[1641280048113,12.60281242,167.96,167.92,6.5528401]
[1641280050721,14.45095457,167.97,167.92,6.5528401]
[1641280051423,14.45095457,167.97,167.91,10.20039776]
[1641280052423,12.60281242,167.97,167.91,10.20039776]
[1641280052623,18.14381242,167.97,167.91,10.20039776]
[1641280052924,1.84814215,167.96,167.92,6.5507835]
[1641280054725,14.45095457,167.97,167.92,6.5507835]
[1641280055127,12.60281242,167.97,167.91,10.20039776]
[1641280056331,14.45095457,167.97,167.91,10.20039776]
[1641280057332,14.45095457,167.97,167.91,4.20039776]
[1641280057734,14.45095457,167.97,167.92,6.0]
[1641280058237,12.60281242,167.96,167.92,10.20039776]
[1641280059137,14.45095457,167.97,167.93,6.5528621]
[1641280060040,14.45095457,167.97,167.92,6.0]
[1641280060041,12.60281242,167.96,167.92,10.20039776]
[1641280062844,14.45095457,167.97,167.93,6.55285797]
[1641280063446,14.45095457,167.97,167.93,4.20039776]
[1641280063646,12.60281242,167.96,167.92,10.20039776]
[1641280065647,3.0,167.95,167.92,10.20039776]
[1641280065849,17.45095457,167.96,167.92,10.20039776]
[1641280066252,14.45095457,167.96,167.92,10.20039776]
[1641280066451,12.60281242,167.94,167.92,6.0]
[1641280067050,27.66479,167.93,167.92,6.0]
[1641280067250,37.40079,167.93,167.92,6.0]
[1641280067651,50.00360242,167.93,167.89,4.20039776]
[1641280068351,50.00360242,167.93,167.89,2.81729776]
[1641280068352,4.84814215,167.92,167.89,2.81729776]
[1641280069052,27.66479,167.9,167.89,2.81729776]
[1641280069351,27.66479,167.9,167.86,2.3522652]
[1641280069553,27.66479,167.9,167.83,2.3522652]
[1641280070356,1.84814215,167.89,167.83,2.3522652]
[1641280070555,6.53914215,167.89,167.83,2.3522652]
[1641280071055,4.691,167.89,167.83,2.3522652]
[1641280071256,27.66479,167.87,167.83,2.3522652]
[1641280072456,20.94132507,167.87,167.83,2.3522652]
[1641280072856,20.94132507,167.87,167.81,2.3522652]
[1641280073057,26.66032507,167.87,167.81,2.3522652]
[1641280073960,3.0,167.86,167.81,2.3522652]
[1641280074358,26.66032507,167.87,167.81,2.3522652]
[1641280074761,29.66032507,167.87,167.81,2.3522652]
[1641280074959,26.66032507,167.87,167.81,2.3522652]
[1641280075359,1.90373536,167.86,167.77,2.3522652]
[1641280075559,45.40373536,167.86,167.77,2.3522652]
[1641280076259,43.5,167.86,167.78,2.3522652]
[1641280076762,43.5,167.86,167.79,2.3522652]
[1641280076960,43.5,167.86,167.79,8.0102652]
[1641280077161,12.60281242,167.89,167.79,35.6750552]
[1641280077363,53.26671242,167.89,167.79,35.6750552]
[1641280077765,53.26671242,167.89,167.8,2.3522652]
[1641280077964,53.26671242,167.89,167.8,45.3433652]
[1641280078562,1.91582134,167.88,167.81,2.3522652]
[1641280079164,1.91582134,167.88,167.82,3.0]
[1641280079363,1.91582134,167.88,167.81,5.3522652]
[1641280079563,1.91582134,167.88,167.82,5.3522652]
[1641280079961,1.91582134,167.88,167.84,3.0]
[1641280080162,1.91582134,167.88,167.84,9.285]
[1641280080664,1.91582134,167.91,167.85,3.0]
[1641280080861,1.91582134,167.91,167.86,3.0]
[1641280081063,1.91582134,167.91,167.84,3.0]
[1641280081262,7.41582134,167.91,167.85,35.66479]
[1641280081462,5.5,167.91,167.87,2.3522652]
[1641280082565,5.5,167.91,167.86,12.59595017]
[1641280082764,14.51863376,167.9,167.85,8.0]
[1641280082964,14.51863376,167.9,167.85,14.0]
[1641280083966,14.51863376,167.9,167.86,2.27929255]
[1641280084165,14.51863376,167.9,167.86,6.45629255]
[1641280084766,1.91582134,167.9,167.86,6.45629255]
[1641280085973,1.91582134,167.9,167.87,2.27929255]
[1641280086370,40.26760242,167.91,167.87,2.27929255]
[1641280087572,1.91582134,167.9,167.87,2.27929255]
[1641280091577,14.51863376,167.93,167.87,2.27929255]
[1641280092478,12.60281242,167.91,167.87,2.27929255]
[1641280092677,12.60281242,167.91,167.87,8.07629255]
[1641280093477,14.51863376,167.93,167.87,8.07629255]
[1641280093978,12.60281242,167.92,167.88,2.27929255]
[1641280101485,12.60281242,167.92,167.87,2.27929255]
[1641280103487,12.60281242,167.91,167.87,2.27929255]
[1641280103686,40.26760242,167.91,167.87,2.27929255]
[1641280104388,1.91582134,167.9,167.87,2.27929255]
[1641280105690,14.51863376,167.91,167.87,2.27929255]
[1641280108594,1.91582134,167.91,167.87,2.27929255]
[1641280109794,1.91582134,167.91,167.86,6.0]
[1641280109996,12.60281242,167.9,167.86,6.0]
[1641280110898,12.60281242,167.89,167.86,6.0]
[1641280111497,12.60281242,167.9,167.86,6.0]
[1641280112399,12.60281242,167.89,167.86,6.0]
[1641280114202,12.60281242,167.9,167.86,6.0]
[1641280114803,12.60281242,167.89,167.86,6.0]
[1641280119608,1.91582134,167.91,167.86,6.0]
[1641280119809,4.91582134,167.91,167.86,6.0]
[1641280120208,27.66479,167.9,167.86,6.0]
[1641280121210,1.91582134,167.89,167.86,6.0]
[1641280126316,14.51863376,167.89,167.86,6.0]
[1641280130825,12.60281242,167.87,167.86,6.0]
[1641280132228,12.60281242,167.88,167.86,6.0]
[1641280133529,9.84813964,167.89,167.86,6.0]
[1641280134233,14.52344472,167.89,167.86,6.0]
[1641280134831,27.66479,167.9,167.86,6.0]
[1641280135032,12.6082299,167.88,167.86,6.0]
[1641280135633,9.85509372,167.89,167.86,6.0]
[1641280136535,12.6080413,167.88,167.86,6.0]
[1641280137837,12.60863227,167.87,167.86,6.0]
[1641280138536,14.50530542,167.89,167.86,6.0]
[1641280139836,1.92361304,167.89,167.86,6.0]
[1641280141143,14.50530542,167.89,167.86,6.0]
[1641280144639,1.92361304,167.89,167.86,6.0]
[1641280147341,14.50530542,167.89,167.86,6.0]
[1641280148041,12.58169238,167.88,167.86,6.0]
[1641280148640,14.50530542,167.89,167.86,6.0]
[1641280149541,12.58169238,167.88,167.86,6.0]
[1641280150743,9.238e-05,167.88,167.86,6.0]
[1641280150942,3.26525182,167.89,167.86,6.0]
[1641280151346,3.26525182,167.89,167.86,9.0]
[1641280151544,3.26525182,167.89,167.86,6.0]
[1641280151745,33.5785042,167.92,167.88,3.0]
[1641280151945,33.5785042,167.92,167.88,5.954]
[1641280152146,37.2583,167.96,167.88,5.954]
[1641280152548,37.2583,167.96,167.89,27.66479]
[1641280152745,37.2583,167.96,167.91,4.20106604]
[1641280156147,3.36104357,167.95,167.91,4.20106604]
[1641280157148,40.2583,167.96,167.91,4.20106604]
[1641280157348,37.2583,167.96,167.91,4.20106604]
[1641280157548,3.36105138,167.95,167.91,4.20106604]
[1641280158549,27.66479,167.94,167.9,4.20106604]
[1641280159251,20.94292961,167.94,167.91,4.20106604]
[1641280160151,20.94292961,167.94,167.9,4.20106604]
[1641280161852,20.94292961,167.94,167.91,4.20106604]
[1641280162054,3.36139258,167.93,167.91,4.20106604]
[1641280162253,8.21139258,167.93,167.91,4.20106604]
[1641280162454,4.85,167.93,167.91,4.20106604]
[1641280162653,4.85,167.93,167.89,4.20106604]
[1641280163756,4.85,167.93,167.9,4.20106604]
[1641280164358,4.85,167.93,167.89,4.20106604]
[1641280165764,3.0,167.92,167.89,4.20106604]
[1641280165961,6.36172758,167.92,167.86,6.0]
[1641280166559,3.36172758,167.91,167.86,6.0]
[1641280166759,31.02651758,167.91,167.86,6.0]
[1641280167360,3.36172758,167.9,167.86,6.0]
[1641280167760,27.66479,167.91,167.86,6.0]
[1641280169662,3.36201373,167.9,167.86,6.0]
[1641280170061,27.66479,167.91,167.86,6.0]
[1641280177175,37.8317,167.92,167.86,11.22]
[1641280177473,33.5785042,167.94,167.86,11.22]
[1641280178975,64.2432942,167.97,167.87,27.66479]
[1641280179174,64.2432942,167.97,167.87,69.02759]
[1641280179473,3.36121613,167.96,167.87,69.02759]
[1641280179676,11.01139073,167.96,167.87,69.02759]
[1641280180374,3.36121613,167.95,167.87,69.02759]
[1641280181372,12.6036314,167.94,167.87,69.02759]
[1641280181977,12.6036314,167.94,167.87,81.6312214]
[1641280182775,12.6036314,167.94,167.9,27.66479]
[1641280185978,12.6036314,167.95,167.9,27.66479]
[1641280187578,7.6501746,167.97,167.9,27.66479]
[1641280187579,12.6036314,167.96,167.9,27.66479]
[1641280189281,44.1358,167.98,167.9,27.66479]
[1641280189681,3.36072936,167.97,167.9,27.66479]
[1641280196188,50.5668,167.98,167.9,27.66479]
[1641280196388,44.1358,167.98,167.9,27.66479]
[1641280196587,3.36069776,167.97,167.9,27.66479]
[1641280197587,14.42127283,167.96,167.91,2.38305034]
[1641280197790,22.76727283,167.96,167.91,2.38305034]
[1641280198193,14.42127283,167.95,167.91,2.38305034]
[1641280199389,14.42127283,167.95,167.87,81.6312214]
[1641280199590,12.6036314,167.94,167.87,69.02759]
[1641280200192,12.6036314,167.94,167.88,2.38297102]
[1641280201794,14.42127283,167.95,167.88,2.38297102]
[1641280202394,14.42127283,167.95,167.88,24.14188512]
[1641280204798,12.6036314,167.95,167.88,24.14188512]
[1641280206901,14.42127283,167.95,167.88,24.14188512]
[1641280207101,54.50557283,167.95,167.88,24.14188512]
[1641280207603,1.81764143,167.94,167.88,24.14188512]
[1641280207800,1.81764143,167.94,167.88,30.14188512]
[1641280208401,1.81764143,167.94,167.89,2.38297102]
[1641280209902,1.81764143,167.94,167.89,30.04776102]
[1641280210703,1.81764143,167.94,167.9,2.38297102]
[1641280210903,1.81764143,167.94,167.9,8.28797102]
[1641280212203,1.81764143,167.94,167.91,2.38297102]
[1641280214907,12.6036314,167.97,167.91,2.38297102]
[1641280215804,14.42127283,167.97,167.92,27.66479]
[1641280216607,14.42127283,167.97,167.93,2.38297102]
[1641280217308,12.6036314,167.97,167.93,2.38297102]
[1641280218610,12.6036314,167.97,167.93,5.38297102]
[1641280218810,12.6036314,167.97,167.95,3.0]
[1641280219010,12.6036314,167.97,167.95,4.69]
[1641280219211,12.6036314,168.0,167.95,4.69]
[1641280220014,12.6036314,168.0,167.96,2.38297102]
[1641280220216,12.6036314,168.0,167.96,30.04776102]
[1641280220817,12.6036314,168.0,167.96,27.66479]
[1641280221117,12.6036314,168.0,167.96,30.66479]
[1641280221317,9.46363219,168.02,167.96,27.66479]
[1641280221519,9.46363219,168.02,167.97,8.0]
[1641280222015,12.59870478,168.0,167.97,8.0]
[1641280222620,12.59828686,168.01,167.97,8.0]
[1641280224119,12.59828686,168.01,168.0,27.66479]
[1641280224321,12.59828686,168.02,168.0,27.66479]
[1641280230525,12.59828686,168.01,168.0,27.66479]
[1641280231727,12.5980954,168.02,168.0,27.66479]
[1641280231928,12.5980954,168.02,167.98,4.19932721]
[1641280232128,12.5980954,168.02,167.98,6.58262472]
[1641280233629,12.5980954,168.01,167.98,6.58262472]
[1641280234331,9.46363219,168.04,167.98,6.58262472]
[1641280234531,12.59768326,168.02,167.99,4.19932721]
[1641280235331,9.46363219,168.04,167.99,4.19932721]
[1641280235532,9.46363219,168.04,167.98,6.58262472]
[1641280236035,12.59773112,168.02,167.99,4.19932721]
[1641280236434,12.59773112,168.02,167.96,27.66479]
[1641280236633,3.0,168.01,167.95,12.6036314]
[1641280236834,3.0,168.0,167.95,12.6036314]
[1641280237034,6.36052401,168.0,167.95,12.6036314]
[1641280237437,6.36052401,167.99,167.95,12.6036314]
[1641280237838,6.36052401,167.99,167.88,43.4263]
[1641280237839,12.60215373,167.96,167.93,2.63947599]
[1641280238039,17.67315373,167.96,167.93,2.63947599]
[1641280238741,5.071,167.96,167.93,2.63947599]
[1641280239441,17.67325018,167.96,167.93,2.63947599]
[1641280240041,5.071,167.96,167.9,27.66479]
[1641280240241,5.071,167.96,167.92,2.63947599]
[1641280241042,17.67326897,167.96,167.92,2.63947599]
[1641280241543,5.071,167.96,167.92,2.63947599]
[1641280242445,5.071,167.96,167.9,30.30426599]
[1641280242846,17.67359381,167.96,167.9,30.30426599]
[1641280243046,17.67359381,167.96,167.9,27.66479]
[1641280243346,5.071,167.96,167.9,27.66479]
[1641280243547,40.26738381,167.98,167.9,30.30426599]
[1641280243748,5.89,167.96,167.9,30.30426599]
[1641280243946,5.89,167.96,167.91,0.67219864]
[1641280245947,5.89,167.96,167.91,3.31167463]
[1641280246547,5.89,167.96,167.92,0.67219864]
[1641280248551,5.89,167.96,167.91,0.67219864]
[1641280248752,40.26738381,167.98,167.93,2.63947599]
[1641280249453,27.66479,167.98,167.94,0.67219864]
[1641280250154,27.66479,167.98,167.91,0.67219864]
[1641280250555,55.56139381,167.99,167.91,0.67219864]
[1641280250754,55.56139381,167.99,167.93,2.63947599]
[1641280251155,55.56139381,167.99,167.94,0.67219864]
[1641280252258,12.60259381,167.95,167.94,0.67219864]
[1641280252757,7.80607618,167.98,167.94,0.67219864]
[1641280252960,12.60232806,167.96,167.94,0.67219864]
[1641280254158,12.60232806,167.96,167.94,3.31167463]
[1641280254558,12.60232806,167.96,167.95,0.67219864]
[1641280254959,7.80607618,167.98,167.92,0.67219864]
[1641280255162,12.60143824,167.97,167.92,0.67219864]
[1641280255359,12.60143824,167.97,167.96,2.63947599]
[1641280255959,12.60143824,167.97,167.96,3.31167463]
[1641280256261,12.60143824,167.98,167.96,3.31167463]
[1641280256461,12.60143824,167.98,167.96,0.67219864]
[1641280256660,12.60143824,167.98,167.97,0.67219864]
[1641280256862,12.60143824,167.98,167.97,3.31167463]
[1641280257261,7.80338976,167.99,167.97,2.63947599]
[1641280257662,7.80338976,167.99,167.98,0.67219864]
[1641280261372,7.80338976,168.0,167.98,0.67219864]
[1641280262272,7.80338976,168.0,167.97,3.04052432]
[1641280262472,13.96491377,168.0,167.97,3.04052432]
[1641280263673,3.36055532,167.99,167.97,3.04052432]
[1641280264978,3.72107933,167.99,167.97,3.04052432]
[1641280265376,3.36055532,167.98,167.97,3.04052432]
[1641280265876,3.36055532,167.98,167.97,3.7126618]
[1641280267076,3.36055532,167.99,167.97,3.7126618]
[1641280267477,3.36055532,167.99,167.98,0.67213748]
[1641280273481,3.72107933,167.99,167.98,3.748e-05]
[1641280275082,31.38586933,167.99,167.98,3.748e-05]
[1641280275884,39.18925909,167.99,167.98,3.748e-05]
[1641280277285,41.06552174,167.99,167.98,3.748e-05]
[1641280278187,13.40073174,167.99,167.98,3.748e-05]
[1641280278486,18.27073174,167.99,167.98,3.748e-05]
[1641280279186,10.46734198,167.99,167.98,3.748e-05]
[1641280279485,38.13213198,167.99,167.98,3.748e-05]
[1641280279785,37.77160797,167.99,167.98,3.748e-05]
[1641280280587,45.57499773,167.99,167.98,3.748e-05]
[1641280280989,45.93552174,167.99,167.98,3.748e-05]
[1641280281486,45.57499773,167.99,167.98,3.748e-05]
[1641280286996,45.93552174,167.99,167.98,3.748e-05]
[1641280289097,45.57499773,167.99,167.98,3.748e-05]
[1641280292104,17.91020773,167.99,167.98,3.748e-05]
[1641280292703,45.57499773,167.99,167.98,3.748e-05]
[1641280292904,37.77160797,167.99,167.98,3.748e-05]
[1641280293503,45.57499773,167.99,167.98,3.748e-05]
[1641280299510,45.93552174,167.99,167.98,3.748e-05]
[1641280299708,17.91020773,167.99,167.98,3.748e-05]
[1641280300309,18.27073174,167.99,167.98,3.748e-05]
[1641280300711,10.46734198,167.99,167.98,3.748e-05]
[1641280301712,14.46734198,167.99,167.98,3.748e-05]
[1641280301912,14.46734198,167.99,167.92,6.83953761]
[1641280302114,14.46734198,167.99,167.92,4.20006162]
[1641280302312,0.36052401,167.98,167.92,4.20006162]
[1641280302513,0.36052401,167.98,167.91,2.63947599]
[1641280302713,12.60194194,167.94,167.91,2.63947599]
[1641280302912,17.52994194,167.94,167.91,2.63947599]
[1641280303214,17.52994194,167.94,167.92,0.67211994]
[1641280304015,17.52994194,167.94,167.91,0.67211994]